[Event "January 9 Late 2024"]
[Site "https://www.chess.com"]
[Date "2024.01.09"]
[Round "2"]
[White "Iturrizaga Bonelli, Eduardo"]
[Black "Shandrygin, Nikita"]
[Result "1-0"]
[Board "19"]
[TimeControl "180+1"]
[WhiteFideId "3901211"]
[BlackFideId "24198668"]
[WhiteElo "3040"]
[BlackElo "2663"]
[WhiteTeam "ESP"]
[BlackTeam "RUS"]
[WhiteClock "0:00:07"]
[BlackClock "0:00:00"]

1. c4 {[%clk 0:03:00]}  Nf6 {[%clk 0:02:59]} 2. g3 {[%clk 0:03:00]}  d5 {[%clk 0:02:59]} 3. cxd5 {[%clk 0:03:00]}  Nxd5 {[%clk 0:03:00]} 4. Bg2 {[%clk 0:03:01]}  Nb6 {[%clk 0:03:01]} 5. Nc3 {[%clk 0:03:01]}  g6 {[%clk 0:03:01]} 6. h4 {[%clk 0:03:01]}  h6 {[%clk 0:03:01]} 7. d4 {[%clk 0:03:00]}  Bg7 {[%clk 0:03:01]} 8. Nf3 {[%clk 0:03:01]}  Nc6 {[%clk 0:03:02]} 9. Be3 {[%clk 0:02:58]}  Nc4 {[%clk 0:02:52]} 10. Bf4 {[%clk 0:02:59]}  O-O {[%clk 0:02:36]} 11. Qc1 {[%clk 0:02:48]}  Kh7 {[%clk 0:02:31]} 12. O-O {[%clk 0:02:37]}  Bg4 {[%clk 0:02:23]} 13. Rd1 {[%clk 0:02:33]}  Nd6 {[%clk 0:01:52]} 14. Ne5 {[%clk 0:02:31]}  Bd7 {[%clk 0:01:42]} 15. e4 {[%clk 0:02:27]}  Qe8 {[%clk 0:01:12]} 16. Nd5 {[%clk 0:02:17]}  Rc8 {[%clk 0:01:10]} 17. Kh2 {[%clk 0:02:00]}  f6 {[%clk 0:00:49]} 18. Nxd7 {[%clk 0:01:48]}  Qxd7 {[%clk 0:00:46]} 19. Nc3 {[%clk 0:01:47]}  g5 {[%clk 0:00:40]} 20. hxg5 {[%clk 0:01:42]}  hxg5 {[%clk 0:00:40]} 21. Be3 {[%clk 0:01:42]}  Nc4 {[%clk 0:00:39]} 22. b3 {[%clk 0:01:27]}  Nxe3 {[%clk 0:00:39]} 23. Qxe3 {[%clk 0:01:28]}  e6 {[%clk 0:00:36]} 24. Bf3 {[%clk 0:01:07]}  f5 {[%clk 0:00:29]} 25. e5 {[%clk 0:00:59]}  Bh6 {[%clk 0:00:20]} 26. d5 {[%clk 0:00:43]}  Ne7 {[%clk 0:00:19]} 27. dxe6 {[%clk 0:00:38]}  Qxe6 {[%clk 0:00:19]} 28. Bxb7 {[%clk 0:00:37]}  Rcd8 {[%clk 0:00:18]} 29. Rxd8 {[%clk 0:00:34]}  Rxd8 {[%clk 0:00:18]} 30. Bg2 {[%clk 0:00:29]}  g4 {[%clk 0:00:17]} 31. Qe2 {[%clk 0:00:28]}  Ng6 {[%clk 0:00:17]} 32. Rd1 {[%clk 0:00:19]}  Rxd1 {[%clk 0:00:17]} 33. Nxd1 {[%clk 0:00:18]}  Nxe5 {[%clk 0:00:17]} 34. Qc2 {[%clk 0:00:16]}  Kg6 {[%clk 0:00:07]} 35. Qxc7 {[%clk 0:00:12]}  Nd3 {[%clk 0:00:06]} 36. Qd8 {[%clk 0:00:07]}  Ne1 {[%clk 0:00:06]} 37. Bd5 {[%clk 0:00:07]}  Qf6 {[%clk 0:00:05]} 38. Qe8+ {[%clk 0:00:07]}  Kg5 {[%clk 0:00:05]} 39. Qxe1 {[%clk 0:00:06]}  f4 {[%clk 0:00:05]} 40. Qe4 {[%clk 0:00:05]}  fxg3+ {[%clk 0:00:06]} 41. fxg3 {[%clk 0:00:06]}  Bg7 {[%clk 0:00:06]} 42. Qe3+ {[%clk 0:00:06]}  Kh5 {[%clk 0:00:06]} 43. Bg2 {[%clk 0:00:07]}  Bh6 {[%clk 0:00:04]} 44. Qc5+ {[%clk 0:00:07]}  Bg5 {[%clk 0:00:04]} 45. Nf2 {[%clk 0:00:07]}  a5 {[%clk 0:00:00]} 46. Ne4 {[%clk 0:00:07]} 1-0

[Event "January 9 Late 2024"]
[Site "https://www.chess.com"]
[Date "2024.01.09"]
[Round "2"]
[White "Yurovskykh, Oleksandr"]
[Black "Pranav, V"]
[Result "0-1"]
[Board "20"]
[TimeControl "180+1"]
[WhiteFideId "14134020"]
[BlackFideId "25060783"]
[WhiteElo "2663"]
[BlackElo "3037"]
[WhiteTeam "UKR"]
[BlackTeam "IND"]
[WhiteClock "0:00:09"]
[BlackClock "0:01:10"]

1. d4 {[%clk 0:02:56]}  Nf6 {[%clk 0:02:59]} 2. Nf3 {[%clk 0:02:55]}  e6 {[%clk 0:02:59]} 3. Bf4 {[%clk 0:02:55]}  b6 {[%clk 0:02:59]} 4. e3 {[%clk 0:02:55]}  Bb7 {[%clk 0:02:59]} 5. Bd3 {[%clk 0:02:56]}  Bd6 {[%clk 0:02:59]} 6. Bxd6 {[%clk 0:02:55]}  cxd6 {[%clk 0:03:00]} 7. O-O {[%clk 0:02:55]}  O-O {[%clk 0:03:01]} 8. Nbd2 {[%clk 0:02:55]}  Nc6 {[%clk 0:03:01]} 9. c3 {[%clk 0:02:53]}  d5 {[%clk 0:03:01]} 10. Qe2 {[%clk 0:02:53]}  d6 {[%clk 0:03:00]} 11. e4 {[%clk 0:02:44]}  dxe4 {[%clk 0:02:51]} 12. Nxe4 {[%clk 0:02:45]}  Nd5 {[%clk 0:02:51]} 13. g3 {[%clk 0:02:32]}  h6 {[%clk 0:02:50]} 14. Rfe1 {[%clk 0:02:22]}  Re8 {[%clk 0:02:41]} 15. Ba6 {[%clk 0:01:51]}  Bxa6 {[%clk 0:02:35]} 16. Qxa6 {[%clk 0:01:51]}  Qd7 {[%clk 0:02:33]} 17. Qe2 {[%clk 0:01:50]}  Rad8 {[%clk 0:02:28]} 18. Rad1 {[%clk 0:01:49]}  Qb7 {[%clk 0:02:24]} 19. Nfd2 {[%clk 0:01:31]}  f5 {[%clk 0:02:20]} 20. c4 {[%clk 0:01:24]}  Ndb4 {[%clk 0:02:06]} 21. Nc3 {[%clk 0:01:22]}  Nxd4 {[%clk 0:02:06]} 22. Qh5 {[%clk 0:01:18]}  Nbc2 {[%clk 0:02:04]} 23. Rf1 {[%clk 0:01:13]}  Kh7 {[%clk 0:02:03]} 24. Rc1 {[%clk 0:01:10]}  Nb4 {[%clk 0:02:00]} 25. Qd1 {[%clk 0:00:45]}  Nd3 {[%clk 0:01:53]} 26. Rb1 {[%clk 0:00:43]}  Rf8 {[%clk 0:01:50]} 27. f4 {[%clk 0:00:36]}  e5 {[%clk 0:01:41]} 28. Nf3 {[%clk 0:00:20]}  Nxf3+ {[%clk 0:01:36]} 29. Rxf3 {[%clk 0:00:19]}  e4 {[%clk 0:01:37]} 30. Rxd3 {[%clk 0:00:18]}  exd3 {[%clk 0:01:36]} 31. Qxd3 {[%clk 0:00:19]}  Qc6 {[%clk 0:01:36]} 32. Nd5 {[%clk 0:00:19]}  Rde8 {[%clk 0:01:35]} 33. Kg2 {[%clk 0:00:18]}  Re4 {[%clk 0:01:31]} 34. b3 {[%clk 0:00:18]}  Rfe8 {[%clk 0:01:31]} 35. Rb2 {[%clk 0:00:18]}  Qc5 {[%clk 0:01:28]} 36. Rd2 {[%clk 0:00:18]}  Qc8 {[%clk 0:01:15]} 37. a4 {[%clk 0:00:15]}  Qe6 {[%clk 0:01:12]} 38. Nc7 {[%clk 0:00:12]}  Re2+ {[%clk 0:01:12]} 39. Kh3 {[%clk 0:00:12]}  Rxd2 {[%clk 0:01:12]} 40. Qxd2 {[%clk 0:00:13]}  Qe2 {[%clk 0:01:12]} 41. Qxe2 {[%clk 0:00:12]}  Rxe2 {[%clk 0:01:13]} 42. Nb5 {[%clk 0:00:13]}  a5 {[%clk 0:01:07]} 43. Nxd6 {[%clk 0:00:11]}  Rb2 {[%clk 0:01:08]} 44. Nxf5 {[%clk 0:00:10]}  Rxb3 {[%clk 0:01:08]} 45. Ne7 {[%clk 0:00:11]}  Rb4 {[%clk 0:01:08]} 46. Nd5 {[%clk 0:00:12]}  Rxc4 {[%clk 0:01:08]} 47. Nxb6 {[%clk 0:00:12]}  Rb4 {[%clk 0:01:09]} 48. Nd7 {[%clk 0:00:10]}  Rxa4 {[%clk 0:01:09]} 49. Nc5 {[%clk 0:00:09]}  Rb4 {[%clk 0:01:10]} 0-1

[Event "January 9 Late 2024"]
[Site "https://www.chess.com"]
[Date "2024.01.09"]
[Round "2"]
[White "Theodorou, Nikolas"]
[Black "Barp, Alberto"]
[Result "1-0"]
[Board "22"]
[TimeControl "180+1"]
[WhiteFideId "4262875"]
[BlackFideId "872555"]
[WhiteElo "3026"]
[BlackElo "2661"]
[WhiteTeam "GRE"]
[BlackTeam "ITA"]
[WhiteClock "0:00:23"]
[BlackClock "0:00:13"]

1. Nf3 {[%clk 0:02:57]}  d5 {[%clk 0:02:56]} 2. b3 {[%clk 0:02:57]}  Nf6 {[%clk 0:02:53]} 3. Bb2 {[%clk 0:02:58]}  e6 {[%clk 0:02:51]} 4. g3 {[%clk 0:02:57]}  g6 {[%clk 0:02:49]} 5. Bg2 {[%clk 0:02:56]}  Bg7 {[%clk 0:02:49]} 6. c4 {[%clk 0:02:55]}  O-O {[%clk 0:02:46]} 7. O-O {[%clk 0:02:55]}  c5 {[%clk 0:02:44]} 8. e3 {[%clk 0:02:53]}  Nc6 {[%clk 0:02:36]} 9. Na3 {[%clk 0:02:52]}  b6 {[%clk 0:02:34]} 10. d4 {[%clk 0:02:50]}  cxd4 {[%clk 0:02:30]} 11. exd4 {[%clk 0:02:39]}  Bb7 {[%clk 0:02:27]} 12. Qe2 {[%clk 0:02:39]}  Qe7 {[%clk 0:02:22]} 13. Nb5 {[%clk 0:02:33]}  Rfd8 {[%clk 0:02:20]} 14. Rad1 {[%clk 0:02:18]}  dxc4 {[%clk 0:02:14]} 15. bxc4 {[%clk 0:02:13]}  a6 {[%clk 0:02:01]} 16. Ba3 {[%clk 0:02:03]}  Nb4 {[%clk 0:01:47]} 17. Nc3 {[%clk 0:02:03]}  a5 {[%clk 0:01:44]} 18. d5 {[%clk 0:01:54]}  Rac8 {[%clk 0:01:30]} 19. Rfe1 {[%clk 0:01:46]}  Ba6 {[%clk 0:01:21]} 20. dxe6 {[%clk 0:01:17]}  Qxe6 {[%clk 0:01:21]} 21. Qxe6 {[%clk 0:00:38]}  fxe6 {[%clk 0:01:21]} 22. Bh3 {[%clk 0:00:39]}  Bxc4 {[%clk 0:01:19]} 23. Ne5 {[%clk 0:00:39]}  Rxd1 {[%clk 0:01:11]} 24. Rxd1 {[%clk 0:00:40]}  Nxa2 {[%clk 0:00:21]} 25. Nxc4 {[%clk 0:00:40]}  Nxc3 {[%clk 0:00:21]} 26. Bxe6+ {[%clk 0:00:40]}  Kh8 {[%clk 0:00:21]} 27. Re1 {[%clk 0:00:29]}  Nfe4 {[%clk 0:00:15]} 28. Bxc8 {[%clk 0:00:27]}  Bd4 {[%clk 0:00:13]} 29. Kg2 {[%clk 0:00:23]} 1-0

[Event "January 9 Late 2024"]
[Site "https://www.chess.com"]
[Date "2024.01.09"]
[Round "2"]
[White "Van Foreest, Jorden"]
[Black "Vestby-Ellingsen, Mads"]
[Result "1-0"]
[Board "24"]
[TimeControl "180+1"]
[WhiteFideId "1039784"]
[BlackFideId "1520857"]
[WhiteElo "3021"]
[BlackElo "2652"]
[WhiteTeam "NED"]
[BlackTeam "NOR"]
[WhiteClock "0:01:06"]
[BlackClock "0:00:00"]

1. e4 {[%clk 0:02:46]}  c5 {[%clk 0:02:58]} 2. Nf3 {[%clk 0:02:46]}  d6 {[%clk 0:02:58]} 3. d4 {[%clk 0:02:40]}  cxd4 {[%clk 0:02:57]} 4. Nxd4 {[%clk 0:02:41]}  Nf6 {[%clk 0:02:57]} 5. Nc3 {[%clk 0:02:35]}  Bd7 {[%clk 0:02:55]} 6. Be3 {[%clk 0:02:33]}  Ng4 {[%clk 0:02:53]} 7. Bg5 {[%clk 0:02:30]}  h6 {[%clk 0:02:53]} 8. Bh4 {[%clk 0:02:31]}  g5 {[%clk 0:02:51]} 9. Bg3 {[%clk 0:02:30]}  Bg7 {[%clk 0:02:35]} 10. Be2 {[%clk 0:02:30]}  Ne5 {[%clk 0:02:35]} 11. h4 {[%clk 0:02:27]}  g4 {[%clk 0:02:29]} 12. Qd2 {[%clk 0:02:25]}  Nbc6 {[%clk 0:02:27]} 13. Nf5 {[%clk 0:02:18]}  Bxf5 {[%clk 0:02:24]} 14. exf5 {[%clk 0:02:19]}  h5 {[%clk 0:02:20]} 15. Nd5 {[%clk 0:02:17]}  Qd7 {[%clk 0:02:15]} 16. f6 {[%clk 0:02:17]}  exf6 {[%clk 0:02:11]} 17. O-O-O {[%clk 0:02:17]}  O-O-O {[%clk 0:02:10]} 18. Kb1 {[%clk 0:02:16]}  Kb8 {[%clk 0:01:47]} 19. Bf4 {[%clk 0:02:13]}  Rhe8 {[%clk 0:01:42]} 20. Rc1 {[%clk 0:02:10]}  Ng6 {[%clk 0:01:41]} 21. Be3 {[%clk 0:02:05]}  f5 {[%clk 0:01:39]} 22. Bg5 {[%clk 0:02:05]}  Rc8 {[%clk 0:01:33]} 23. Rhd1 {[%clk 0:02:04]}  Nd4 {[%clk 0:01:30]} 24. Bf1 {[%clk 0:01:55]}  Ne6 {[%clk 0:01:12]} 25. Be3 {[%clk 0:01:51]}  Nc5 {[%clk 0:01:09]} 26. f3 {[%clk 0:01:47]}  Qe6 {[%clk 0:01:01]} 27. Bb5 {[%clk 0:01:40]}  Red8 {[%clk 0:00:58]} 28. Bg5 {[%clk 0:01:38]}  f6 {[%clk 0:00:46]} 29. Re1 {[%clk 0:01:38]}  Qf7 {[%clk 0:00:45]} 30. Be3 {[%clk 0:01:39]}  Ne5 {[%clk 0:00:43]} 31. Rf1 {[%clk 0:01:26]}  Ned3 {[%clk 0:00:28]} 32. cxd3 {[%clk 0:01:14]}  Qxd5 {[%clk 0:00:27]} 33. Bc4 {[%clk 0:01:15]}  Qc6 {[%clk 0:00:23]} 34. d4 {[%clk 0:01:15]}  f4 {[%clk 0:00:13]} 35. Bxf4 {[%clk 0:01:14]}  Nd7 {[%clk 0:00:12]} 36. Be6 {[%clk 0:01:12]}  Qb6 {[%clk 0:00:12]} 37. Rxc8+ {[%clk 0:01:12]}  Kxc8 {[%clk 0:00:11]} 38. Rc1+ {[%clk 0:01:06]}  Kb8 {[%clk 0:00:12]} 39. Qc3 {[%clk 0:01:06]}  Qb5 {[%clk 0:00:00]} 40. Qc7+ {[%clk 0:01:06]} 1-0

[Event "January 9 Late 2024"]
[Site "https://www.chess.com"]
[Date "2024.01.09"]
[Round "2"]
[White "Martinez Alcantara, Jose Eduardo"]
[Black "Gubajdullin, Alexei"]
[Result "1-0"]
[Board "26"]
[TimeControl "180+1"]
[WhiteFideId "3805662"]
[BlackFideId "4141202"]
[WhiteElo "3008"]
[BlackElo "2649"]
[WhiteTeam "PER"]
[BlackTeam "RUS"]
[WhiteClock "0:00:35"]
[BlackClock "0:00:09"]

1. e4 {[%clk 0:02:55]}  e5 {[%clk 0:02:59]} 2. Nf3 {[%clk 0:02:56]}  Nf6 {[%clk 0:03:00]} 3. Nc3 {[%clk 0:02:56]}  Bb4 {[%clk 0:02:59]} 4. Nxe5 {[%clk 0:02:52]}  O-O {[%clk 0:02:59]} 5. Nd3 {[%clk 0:02:52]}  Bxc3 {[%clk 0:02:58]} 6. dxc3 {[%clk 0:02:53]}  Nxe4 {[%clk 0:02:58]} 7. Be2 {[%clk 0:02:53]}  Re8 {[%clk 0:02:58]} 8. O-O {[%clk 0:02:54]}  d6 {[%clk 0:02:58]} 9. Nf4 {[%clk 0:02:55]}  Nd7 {[%clk 0:02:57]} 10. c4 {[%clk 0:02:48]}  Ndf6 {[%clk 0:02:55]} 11. Be3 {[%clk 0:02:44]}  b6 {[%clk 0:02:52]} 12. Bf3 {[%clk 0:02:32]}  Bb7 {[%clk 0:02:51]} 13. h3 {[%clk 0:02:29]}  Qd7 {[%clk 0:02:47]} 14. Re1 {[%clk 0:02:09]}  Qf5 {[%clk 0:02:35]} 15. Qd3 {[%clk 0:02:02]}  h5 {[%clk 0:02:27]} 16. Ne2 {[%clk 0:01:52]}  g5 {[%clk 0:02:19]} 17. Nd4 {[%clk 0:01:50]}  Qg6 {[%clk 0:02:18]} 18. Nb5 {[%clk 0:01:49]}  g4 {[%clk 0:02:12]} 19. hxg4 {[%clk 0:01:50]}  hxg4 {[%clk 0:02:11]} 20. Bxe4 {[%clk 0:01:40]}  Bxe4 {[%clk 0:02:07]} 21. Qd4 {[%clk 0:01:40]}  Re5 {[%clk 0:01:43]} 22. Nxc7 {[%clk 0:01:17]}  Rh5 {[%clk 0:01:42]} 23. Bf4 {[%clk 0:00:52]}  Bf3 {[%clk 0:01:12]} 24. Qxd6 {[%clk 0:00:39]}  Rc8 {[%clk 0:00:43]} 25. Re5 {[%clk 0:00:39]}  Rh8 {[%clk 0:00:25]} 26. Rg5 {[%clk 0:00:39]}  Qxg5 {[%clk 0:00:16]} 27. Bxg5 {[%clk 0:00:39]}  Ne4 {[%clk 0:00:17]} 28. Qf4 {[%clk 0:00:39]}  Rh5 {[%clk 0:00:16]} 29. gxf3 {[%clk 0:00:35]}  Nxg5 {[%clk 0:00:09]} 30. Qxg4 {[%clk 0:00:35]} 1-0

[Event "January 9 Late 2024"]
[Site "https://www.chess.com"]
[Date "2024.01.09"]
[Round "2"]
[White "Deac, Bogdan-Daniel"]
[Black "Sun, Rick"]
[Result "1-0"]
[Board "28"]
[TimeControl "180+1"]
[WhiteFideId "1226380"]
[BlackFideId "30909481"]
[WhiteElo "3007"]
[BlackElo "2644"]
[WhiteTeam "ROU"]
[BlackTeam "USA"]
[WhiteClock "0:00:59"]
[BlackClock "0:00:17"]

1. b3 {[%clk 0:03:00]}  d6 {[%clk 0:03:00]} 2. Bb2 {[%clk 0:03:01]}  e5 {[%clk 0:02:59]} 3. e3 {[%clk 0:03:01]}  Nd7 {[%clk 0:02:57]} 4. d4 {[%clk 0:03:01]}  e4 {[%clk 0:02:57]} 5. d5 {[%clk 0:03:01]}  f5 {[%clk 0:02:54]} 6. Ne2 {[%clk 0:02:58]}  Ngf6 {[%clk 0:02:53]} 7. Nf4 {[%clk 0:02:56]}  Ne5 {[%clk 0:02:52]} 8. h4 {[%clk 0:02:56]}  c6 {[%clk 0:02:35]} 9. Nc3 {[%clk 0:02:52]}  Bd7 {[%clk 0:02:30]} 10. Qd2 {[%clk 0:02:51]}  Rc8 {[%clk 0:02:25]} 11. O-O-O {[%clk 0:02:49]}  c5 {[%clk 0:02:10]} 12. Bb5 {[%clk 0:02:47]}  c4 {[%clk 0:02:06]} 13. Ne6 {[%clk 0:02:42]}  Qa5 {[%clk 0:02:04]} 14. Bxd7+ {[%clk 0:02:42]}  Nfxd7 {[%clk 0:01:57]} 15. Kb1 {[%clk 0:02:41]}  Nc5 {[%clk 0:01:56]} 16. Nxf8 {[%clk 0:02:24]}  Rxf8 {[%clk 0:01:52]} 17. Nxe4 {[%clk 0:02:23]}  Qxd2 {[%clk 0:01:28]} 18. Nxd2 {[%clk 0:02:18]}  Ng4 {[%clk 0:01:14]} 19. Nxc4 {[%clk 0:02:04]}  Nxf2 {[%clk 0:01:13]} 20. Nxd6+ {[%clk 0:01:59]}  Kd7 {[%clk 0:01:12]} 21. Nxc8 {[%clk 0:01:58]}  Nxh1 {[%clk 0:01:11]} 22. Rxh1 {[%clk 0:01:51]}  Rxc8 {[%clk 0:01:10]} 23. Bxg7 {[%clk 0:01:51]}  Rg8 {[%clk 0:01:09]} 24. Bd4 {[%clk 0:01:50]}  Ne4 {[%clk 0:01:09]} 25. Kb2 {[%clk 0:01:28]}  Rxg2 {[%clk 0:01:06]} 26. Bxa7 {[%clk 0:01:27]}  Kd6 {[%clk 0:01:03]} 27. Rd1 {[%clk 0:01:25]}  Rd2 {[%clk 0:00:41]} 28. Rxd2 {[%clk 0:01:20]}  Nxd2 {[%clk 0:00:42]} 29. c4 {[%clk 0:01:21]}  b5 {[%clk 0:00:42]} 30. Kc3 {[%clk 0:01:17]}  Nb1+ {[%clk 0:00:36]} 31. Kd3 {[%clk 0:01:13]}  h5 {[%clk 0:00:29]} 32. Bd4 {[%clk 0:01:09]}  Na3 {[%clk 0:00:21]} 33. Bb2 {[%clk 0:01:07]}  bxc4+ {[%clk 0:00:20]} 34. bxc4 {[%clk 0:01:06]}  Nb1 {[%clk 0:00:18]} 35. Kc2 {[%clk 0:00:59]}  f4 {[%clk 0:00:17]} 36. exf4 {[%clk 0:00:59]} 1-0

[Event "January 9 Late 2024"]
[Site "https://www.chess.com"]
[Date "2024.01.09"]
[Round "2"]
[White "Antipov, Mikhail Al."]
[Black "Sivakumar, Shaaketh"]
[Result "1-0"]
[Board "30"]
[TimeControl "180+1"]
[WhiteFideId "4107012"]
[BlackFideId "30940176"]
[WhiteElo "2993"]
[BlackElo "2643"]
[WhiteTeam "FID"]
[BlackTeam "USA"]
[WhiteClock "0:00:40"]
[BlackClock "0:01:38"]

1. e4 {[%clk 0:03:00]}  e6 {[%clk 0:02:58]} 2. d4 {[%clk 0:02:57]}  d5 {[%clk 0:02:58]} 3. Nd2 {[%clk 0:02:57]}  c5 {[%clk 0:02:57]} 4. Ngf3 {[%clk 0:02:57]}  Nc6 {[%clk 0:02:56]} 5. exd5 {[%clk 0:02:54]}  exd5 {[%clk 0:02:57]} 6. Bb5 {[%clk 0:02:54]}  Qe7+ {[%clk 0:02:58]} 7. Be2 {[%clk 0:02:54]}  Qc7 {[%clk 0:02:59]} 8. O-O {[%clk 0:02:53]}  Nf6 {[%clk 0:02:58]} 9. Re1 {[%clk 0:02:51]}  Be6 {[%clk 0:02:57]} 10. h3 {[%clk 0:02:49]}  cxd4 {[%clk 0:02:42]} 11. Nb3 {[%clk 0:02:48]}  Bd6 {[%clk 0:02:42]} 12. Nbxd4 {[%clk 0:02:44]}  O-O {[%clk 0:02:42]} 13. Nb5 {[%clk 0:02:41]}  Qd7 {[%clk 0:02:40]} 14. Nxd6 {[%clk 0:02:41]}  Qxd6 {[%clk 0:02:41]} 15. c3 {[%clk 0:02:36]}  Ne4 {[%clk 0:02:39]} 16. Nd4 {[%clk 0:02:10]}  Ne5 {[%clk 0:02:27]} 17. Bf4 {[%clk 0:02:06]}  Nf3+ {[%clk 0:02:22]} 18. gxf3 {[%clk 0:02:03]}  Qxf4 {[%clk 0:02:22]} 19. fxe4 {[%clk 0:02:04]}  Bxh3 {[%clk 0:02:20]} 20. Qd3 {[%clk 0:01:53]}  Qg5+ {[%clk 0:02:16]} 21. Qg3 {[%clk 0:01:53]}  Qxg3+ {[%clk 0:02:17]} 22. fxg3 {[%clk 0:01:54]}  dxe4 {[%clk 0:02:17]} 23. g4 {[%clk 0:01:39]}  h5 {[%clk 0:02:15]} 24. g5 {[%clk 0:01:36]}  g6 {[%clk 0:02:06]} 25. Kh2 {[%clk 0:01:21]}  Bd7 {[%clk 0:02:05]} 26. Kg3 {[%clk 0:01:10]}  Rae8 {[%clk 0:02:03]} 27. Kf4 {[%clk 0:01:06]}  f6 {[%clk 0:02:01]} 28. gxf6 {[%clk 0:01:02]}  Rxf6+ {[%clk 0:02:02]} 29. Ke3 {[%clk 0:01:03]}  h4 {[%clk 0:02:02]} 30. Rh1 {[%clk 0:00:58]}  h3 {[%clk 0:02:02]} 31. Bf1 {[%clk 0:00:53]}  Ref8 {[%clk 0:01:52]} 32. Bxh3 {[%clk 0:00:44]}  Rf3+ {[%clk 0:01:49]} 33. Nxf3 {[%clk 0:00:44]}  Rxf3+ {[%clk 0:01:49]} 34. Kxe4 {[%clk 0:00:45]}  Rxh3 {[%clk 0:01:45]} 35. Rxh3 {[%clk 0:00:45]}  Bxh3 {[%clk 0:01:46]} 36. Ke5 {[%clk 0:00:43]}  Kf7 {[%clk 0:01:45]} 37. Rh1 {[%clk 0:00:42]}  Bd7 {[%clk 0:01:41]} 38. Rh7+ {[%clk 0:00:43]}  Ke8 {[%clk 0:01:38]} 39. Kf6 {[%clk 0:00:40]} 1-0

[Event "January 9 Late 2024"]
[Site "https://www.chess.com"]
[Date "2024.01.09"]
[Round "2"]
[White "Janaszak, Dawid"]
[Black "Shankland, Sam"]
[Result "0-1"]
[Board "31"]
[TimeControl "180+1"]
[WhiteFideId "1119206"]
[BlackFideId "2004887"]
[WhiteElo "2639"]
[BlackElo "2989"]
[WhiteTeam "POL"]
[BlackTeam "USA"]
[WhiteClock "0:00:03"]
[BlackClock "0:01:31"]

1. e4 {[%clk 0:03:00]}  c5 {[%clk 0:02:58]} 2. Nc3 {[%clk 0:03:00]}  Nc6 {[%clk 0:02:58]} 3. Bb5 {[%clk 0:03:00]}  Nd4 {[%clk 0:02:57]} 4. Nf3 {[%clk 0:03:00]}  e6 {[%clk 0:02:55]} 5. O-O {[%clk 0:02:59]}  a6 {[%clk 0:02:54]} 6. Bd3 {[%clk 0:02:59]}  Nc6 {[%clk 0:02:55]} 7. a3 {[%clk 0:02:57]}  Nf6 {[%clk 0:02:52]} 8. e5 {[%clk 0:02:46]}  Ng4 {[%clk 0:02:50]} 9. Re1 {[%clk 0:02:42]}  d6 {[%clk 0:02:28]} 10. exd6 {[%clk 0:02:35]}  Bxd6 {[%clk 0:02:28]} 11. Ne4 {[%clk 0:02:31]}  Be7 {[%clk 0:02:27]} 12. h3 {[%clk 0:02:23]}  Nf6 {[%clk 0:02:25]} 13. Qe2 {[%clk 0:02:08]}  Nd5 {[%clk 0:02:24]} 14. Bc4 {[%clk 0:01:59]}  b5 {[%clk 0:02:19]} 15. Ba2 {[%clk 0:01:54]}  O-O {[%clk 0:02:18]} 16. d3 {[%clk 0:01:54]}  Bb7 {[%clk 0:02:16]} 17. c3 {[%clk 0:01:47]}  Qd7 {[%clk 0:02:14]} 18. Bd2 {[%clk 0:01:31]}  Rfd8 {[%clk 0:02:11]} 19. Rad1 {[%clk 0:01:31]}  Qc7 {[%clk 0:02:09]} 20. Bb1 {[%clk 0:01:14]}  h6 {[%clk 0:02:07]} 21. Ng3 {[%clk 0:01:05]}  Nf6 {[%clk 0:02:00]} 22. Bc1 {[%clk 0:00:54]}  Rd7 {[%clk 0:01:58]} 23. Nh2 {[%clk 0:00:49]}  Rad8 {[%clk 0:01:44]} 24. Ng4 {[%clk 0:00:50]}  Nxg4 {[%clk 0:01:44]} 25. Qxg4 {[%clk 0:00:51]}  Ne5 {[%clk 0:01:43]} 26. Qh5 {[%clk 0:00:43]}  Nxd3 {[%clk 0:01:40]} 27. Bxh6 {[%clk 0:00:30]}  gxh6 {[%clk 0:01:33]} 28. Qxh6 {[%clk 0:00:22]}  Qf4 {[%clk 0:01:32]} 29. Qh5 {[%clk 0:00:03]}  Qxf2+ {[%clk 0:01:31]} 0-1

[Event "January 9 Late 2024"]
[Site "https://www.chess.com"]
[Date "2024.01.09"]
[Round "2"]
[White "Dominguez Perez, Leinier"]
[Black "Bressac, Stephane"]
[Result "1-0"]
[Board "32"]
[TimeControl "180+1"]
[WhiteFideId "3503240"]
[BlackFideId "655945"]
[WhiteElo "2982"]
[BlackElo "2635"]
[WhiteTeam "USA"]
[BlackTeam "FRA"]
[WhiteClock "0:00:26"]
[BlackClock "0:00:01"]

1. e4 {[%clk 0:03:00]}  d6 {[%clk 0:02:59]} 2. d4 {[%clk 0:03:00]}  Nf6 {[%clk 0:03:00]} 3. Nc3 {[%clk 0:03:01]}  e5 {[%clk 0:03:00]} 4. Nf3 {[%clk 0:03:00]}  Nbd7 {[%clk 0:02:59]} 5. Bc4 {[%clk 0:03:01]}  exd4 {[%clk 0:02:56]} 6. Qxd4 {[%clk 0:02:50]}  Be7 {[%clk 0:02:51]} 7. Bf4 {[%clk 0:02:46]}  Nb6 {[%clk 0:02:50]} 8. Bb3 {[%clk 0:02:43]}  O-O {[%clk 0:02:47]} 9. O-O-O {[%clk 0:02:41]}  Be6 {[%clk 0:02:43]} 10. e5 {[%clk 0:02:11]}  dxe5 {[%clk 0:02:30]} 11. Bxe5 {[%clk 0:01:55]}  Qxd4 {[%clk 0:02:26]} 12. Nxd4 {[%clk 0:01:55]}  Bxb3 {[%clk 0:02:25]} 13. axb3 {[%clk 0:01:55]}  Bb4 {[%clk 0:02:00]} 14. Bxf6 {[%clk 0:01:41]}  Bxc3 {[%clk 0:02:00]} 15. bxc3 {[%clk 0:01:29]}  gxf6 {[%clk 0:02:01]} 16. Nf5 {[%clk 0:01:30]}  Rfe8 {[%clk 0:01:59]} 17. c4 {[%clk 0:01:25]}  Re5 {[%clk 0:01:57]} 18. g4 {[%clk 0:01:25]}  Rae8 {[%clk 0:01:51]} 19. f4 {[%clk 0:01:21]}  Ra5 {[%clk 0:01:22]} 20. Kb2 {[%clk 0:01:18]}  Kf8 {[%clk 0:01:17]} 21. Rhe1 {[%clk 0:01:05]}  Rxe1 {[%clk 0:01:09]} 22. Rxe1 {[%clk 0:01:05]}  Nd7 {[%clk 0:01:10]} 23. Re3 {[%clk 0:00:57]}  Nb6 {[%clk 0:00:30]} 24. Rh3 {[%clk 0:00:37]}  Kg8 {[%clk 0:00:21]} 25. Rd3 {[%clk 0:00:36]}  h5 {[%clk 0:00:21]} 26. h3 {[%clk 0:00:35]}  hxg4 {[%clk 0:00:14]} 27. hxg4 {[%clk 0:00:34]}  Rc5 {[%clk 0:00:09]} 28. Rd8+ {[%clk 0:00:34]}  Kh7 {[%clk 0:00:09]} 29. Rf8 {[%clk 0:00:32]}  Rc6 {[%clk 0:00:05]} 30. Rxf7+ {[%clk 0:00:31]}  Kg8 {[%clk 0:00:04]} 31. Re7 {[%clk 0:00:28]}  Kf8 {[%clk 0:00:04]} 32. Rh7 {[%clk 0:00:26]}  Nc8 {[%clk 0:00:01]} 33. Rh8+ {[%clk 0:00:26]} 1-0

[Event "January 9 Late 2024"]
[Site "https://www.chess.com"]
[Date "2024.01.09"]
[Round "2"]
[White "Sherman, Raem"]
[Black "Yoo, Christopher Woojin"]
[Result "1/2-1/2"]
[Board "33"]
[TimeControl "180+1"]
[WhiteFideId "2822288"]
[BlackFideId "30909694"]
[WhiteElo "2633"]
[BlackElo "2979"]
[WhiteTeam "ISR"]
[BlackTeam "USA"]
[WhiteClock "0:02:24"]
[BlackClock "0:01:46"]

1. e4 {[%clk 0:03:00]}  c5 {[%clk 0:02:45]} 2. Nf3 {[%clk 0:03:01]}  d6 {[%clk 0:02:45]} 3. d4 {[%clk 0:03:01]}  cxd4 {[%clk 0:02:46]} 4. Nxd4 {[%clk 0:03:02]}  Nf6 {[%clk 0:02:46]} 5. Nc3 {[%clk 0:03:02]}  a6 {[%clk 0:02:46]} 6. Bg5 {[%clk 0:03:03]}  Nbd7 {[%clk 0:02:40]} 7. Bc4 {[%clk 0:03:03]}  Qa5 {[%clk 0:02:22]} 8. Qd2 {[%clk 0:02:59]}  g6 {[%clk 0:02:00]} 9. O-O {[%clk 0:02:50]}  h6 {[%clk 0:01:48]} 10. Nd5 {[%clk 0:02:37]}  Qxd2 {[%clk 0:01:46]} 11. Nc7+ {[%clk 0:02:19]}  Kd8 {[%clk 0:01:45]} 12. Nde6+ {[%clk 0:02:20]}  fxe6 {[%clk 0:01:45]} 13. Nxe6+ {[%clk 0:02:21]}  Ke8 {[%clk 0:01:45]} 14. Nc7+ {[%clk 0:02:22]}  Kd8 {[%clk 0:01:45]} 15. Ne6+ {[%clk 0:02:23]}  Ke8 {[%clk 0:01:46]} 16. Nc7+ {[%clk 0:02:24]}  Kd8 {[%clk 0:01:46]} 17. Ne6+ {[%clk 0:02:24]} 1/2-1/2